Workbook

Sheet на 01.10.2025
A2: Исполнение по муниципальным программам Заволжского муниципального района на 01.10.2025
G4: план | H4: 75.00%
A5: № программы | B5: Наименование муниципальной программы | C5: НПА | D5: утверждено по состоянию на 01.10.2025 | E5: профинансировано на 01.10.2025 | F5: кассовые расходы на 01.10.2025 | G5: % исполнения | H5: отклонение от плана % (- недовыполнение, + перевыполнение)
A7: 1. | B7: Развитие образования в Заволжском муниципальном районе | C7: Постановление от 01.11.2013 №1092-п | D7: =D8+D9+D10+D11+D12 -> 352,600,354.53 | E7: =E8+E9+E10+E11+E12 -> 228,589,820.14 | F7: =F8+F9+F10+F11+F12 -> 198,818,054.05 | G7: =F7/D7*100 -> 56.39 | H7: =G7-9*100/12 -> -18.61
A8: 1.1. | B8: Предоставление дошкольного образования в Заволжском муниципальном районе | D8: 127,817,846.74 | E8: 78,748,954.91 | F8: 67,811,163.85 | G8: =F8/D8*100 -> 53.05 | H8: =G8-9*100/12 -> -21.95
A9: 1.2. | B9: Предоставление общедоступного бесплатного начального общего, основного общего, среднего общего образования по основным общеобразовательным программам в Заволжском муниципальном районе | D9: 192,115,957.46 | E9: 127,587,619.08 | F9: 109,944,885.33 | G9: 57.23 | H9: -17.77
A10: 1.3. | B10: Предоставление дополнительного образования детям в Заволжском муниципальном районе | D10: 11,324,388.88 | E10: 8,506,900.00 | F10: 8,506,900.00 | G10: 75.12 | H10: 0.12
A11: 1.4. | B11: Организация отдыха, оздоровления и занятости детей и подростков в Заволжском муниципальном районе | D11: 725,146.00 | E11: 675,389.00 | F11: 675,389.00 | G11: 93.14 | H11: 18.14
A12: 1.5. | B12: Обеспечение деятельности органа управления образованием и образовательных учреждений Заволжского муниципального района | D12: 20,617,015.45 | E12: 13,070,957.15 | F12: 11,879,715.87 | G12: 57.62 | H12: -17.38
A13: 2. | B13: Развитие физической культуры и спорта в Заволжском муниципальном районе | C13: Постановление от 05.11.2013 №1107-п | D13: 20,145,219.85 | E13: 10,743,816.62 | F13: 9,274,831.23 | G13: 46.04 | H13: -28.96
A14: 3. | B14: Развитие культуры и повышение эффективности реализации молодежной политики в Заволжском муниципальном районе | C14: Постановление от 08.11.2013 №1116-п | D14: =D15+D16+D17 -> 24,334,841.26 | E14: =E15+E16+E17 -> 23,242,653.72 | F14: =F15+F16+F17 -> 18,724,861.49 | G14: 76.95 | H14: 1.95
A15: 3.1. | B15: Предоставление дополнительного образования детям в сфере культуры и искусства в Заволжском муниципальном районе | D15: 19,038,479.92 | E15: 18,038,479.92 | F15: 14,435,380.00 | G15: 75.82 | H15: 0.82
A16: 3.2. | B16: Библиотечное дело в Заволжском муниципальном районе | D16: 5,146,361.34 | E16: 5,146,361.34 | F16: 4,231,669.03 | G16: 82.23 | H16: 7.23
A17: 3.3. | B17: Реализация молодежной политики в Заволжском муниципальном районе | D17: 150,000.00 | E17: 57,812.46 | F17: 57,812.46 | G17: 38.54 | H17: -36.46
A18: 4. | B18: Социальная поддержка граждан Заволжского муниципального района | C18: Постановление от 29.10.2013 №1066-п | D18: =D19+D20 -> 2,652,245.00 | E18: =E19+E20 -> 2,200,000.00 | F18: 2,111,000.00 | G18: 79.59 | H18: 4.59
A19: 4.1. | B19: Повышение качества жизни граждан пожилого возраста в Заволжском муниципальном районе | D19: 350,000.00 | E19: 350,000.00 | F19: 261,000.00 | G19: 74.57 | H19: -0.43
A20: 4.2. | B20: Профилактика социального сиротства, развитие семейных форм устройства детей-сирот и детей, оставшихся без попечения родителей | D20: 2,302,245.00 | E20: 1,850,000.00 | F20: 1,850,000.00 | G20: 80.36 | H20: 5.36
A21: 5. | B21: Экономическое развитие Заволжского муниципального района | C21: Постановление от 14.10.2013 №1021-п | D21: =D22+D23 -> 1,005,000.00 | E21: =E22+E23 -> 1,005,000.00 | F21: 23,919.00 | G21: 2.38 | H21: -72.62
A22: 5.1. | B22: Развитие субъектов малого и среднего предпринимательства в Заволжском муниципальном районе | D22: 605,000.00 | E22: 605,000.00 | F22: 23,919.00 | G22: 3.95 | H22: -71.05
A23: 5.2. | B23: Развитие сельскохозяйственного производства в Заволжском муниципальном районе | D23: 400,000.00 | E23: 400,000.00 | F23: 0.00 | G23: 0.00 | H23: -75.00
A24: 6. | B24: Обеспечение доступным и комфортным жильем населения Заволжского муниципального района | C24: Постановление от 05.11.2013 №1066-п | D24: =D25+D26 -> 59,114,993.06 | E24: =E25+E26 -> 2,245,000.00 | F24: 1,744,640.53 | G24: 2.95 | H24: -72.05
A25: 6.1. | B25: Развитие газификации Заволжского муниципального района | D25: 59,114,993.06 | E25: 2,245,000.00 | F25: 1,744,640.53 | G25: 2.95 | H25: -72.05
A26: 6.2. | B26: Стимулирование развития жилищного строительства | D26: 0.00 | E26: 0.00 | F26: 0.00
A27: 7. | B27: Обеспечение услугами жилищно–коммунального хозяйства населения Заволжского муниципального района | D27: =D28 -> 7,993,020.13 | E27: =E28 -> 7,145,978.00 | F27: 6,492,197.00 | G27: 81.22 | H27: 6.22
A28: 7.1. | B28: Предупреждение аварийных ситуаций на объектах ЖКХ, расположенных на территории сельских поселений Заволжского муниципального района и развитие коммунальной инфраструктуры | D28: 7,993,020.13 | E28: 7,145,978.00 | F28: 6,492,197.00 | G28: 81.22 | H28: 6.22
A29: 8. | B29: Энергосбережение и повышение энергетической эффективности Заволжского муниципального района | D29: =D30+D31 -> 97,900.00 | E29: =E30+E31 -> 0.00 | F29: 0.00 | G29: 0.00 | H29: -75.00
A30: 8.1. | B30: Повышение энергетической эффективности деятельности муниципальных учреждений | D30: 38,900.00 | E30: 0.00 | F30: 0.00 | G30: 0.00 | H30: -75.00
A31: 8.2. | B31: Повышение энергетической эффективности в жилищном фонде | D31: 59,000.00 | E31: 0.00 | F31: 0.00 | G31: 0.00 | H31: -75.00
A32: 9. | B32: Развитие транспортной системы Заволжского муниципального района | C32: Постановление от 29.10.2013 №1068-п | D32: 134,975,566.04 | E32: 62,779,637.98 | F32: 59,188,506.32 | G32: 43.85 | H32: -31.15
A33: 10. | B33: Безопасность Заволжского муниципального района Ивановской области | C33: Постановление от 14.10.2013 №1020-п | D33: =D34+D35+D36 -> 3,621,162.16 | E33: =E34+E35+E36 -> 2,613,364.51 | F33: =F34+F35+F36 -> 1,922,480.96 | G33: 53.09 | H33: -21.91
A34: 10.1. | B34: Обеспечение общественного порядка и профилактика правонарушений | D34: 1,411,146.16 | E34: 809,596.51 | F34: 570,509.46 | G34: 40.43 | H34: -34.57
A35: 10.2. | B35: Построение и развитие АПК «Безопасный город» | D35: 5,000.00 | E35: 0.00 | F35: 0.00 | G35: 0.00 | H35: -75.00
A36: 10.4. | B36: Пожарная безопасность | D36: 2,205,016.00 | E36: 1,803,768.00 | F36: 1,351,971.50 | G36: 61.31 | H36: -13.69
A37: 11. | B37: Управление муниципальными финансами в Заволжском муниципальном районе | D37: =D38+D39 -> 9,211,175.00 | E37: =E38+E39 -> 6,919,265.00 | F37: 6,499,847.06 | G37: 70.56 | H37: -4.44
A38: 11.1. | B38: Организация бюджетного процесса в Заволжском муниципальном районе | D38: 9,211,175.00 | E38: 6,919,265.00 | F38: 6,499,847.06 | G38: 70.56 | H38: -4.44
A39: 11.2. | B39: Управление муниципальным долгом Заволжского муниципального района | D39: 0.00 | E39: 0.00 | F39: 0.00
A40: 12. | B40: Совершенствование местного самоуправления Заволжского муниципального района | C40: постановление от 27.10.2014 №868-п | D40: =D41+D42+D43 -> 82,001,608.64 | E40: =E41+E42+E43 -> 70,449,424.40 | F40: =F41+F42+F43 -> 57,836,500.15 | G40: 70.53 | H40: -4.47
A41: 12.1 | B41: Обеспечение деятельности администрации Заволжского муниципального района | D41: 54,417,486.42 | E41: 46,841,883.09 | F41: 40,152,281.47 | G41: 73.79 | H41: -1.21
A42: 12.2 | B42: Обеспечение деятельности муниципального казенного учреждения «Управление по материально-техническому обеспечению деятельности органов местного самоуправления Заволжского муниципального района» | D42: 20,829,347.22 | E42: 17,166,460.81 | F42: 12,618,138.18 | G42: 60.58 | H42: -14.42
A43: 12.3. | B43: Организация предоставления государственных и муниципальных услуг на базе муниципального учреждения «Многофункциональный центр предоставления государственных и муниципальных услуг Заволжского муниципального района | D43: 6,754,775.00 | E43: 6,441,080.50 | F43: 5,066,080.50 | G43: 75.00 | H43: -0.00
A44: 13. | B44: Управление муниципальным имуществом Заволжского муниципального района Ивановской области | C44: постановление от 27.10.2014 №868-п | D44: 2,998,567.81 | E44: 2,645,500.00 | F44: 1,379,697.67 | G44: 46.01 | H44: -28.99
A45: 14. | B45: Улучшение условий и охраны труда в органах местного самоуправления Заволжского муниципального района | D45: =D46+D47 -> 169,750.00 | E45: =E46+E47 -> 22,811.00 | F45: 12,811.00 | G45: 7.55 | H45: -67.45
A46: 14.1. | B46: Специальная оценка условий труда в органах местного самоуправления Заволжского муниципального района | D46: 72,561.00 | E46: 7,811.00 | F46: 7,811.00 | G46: 10.76 | H46: -64.24
A47: 14.2. | B47: Совершенствование системы непрерывной подготовки работников по охране труда на основе современных технологий обучения | D47: 97,189.00 | E47: 15,000.00 | F47: 5,000.00 | G47: 5.14 | H47: -69.86
A48: 15. | B48: Поддержка и развитие информационно-коммуникационных технологий в органах местного самоуправления Заволжского муниципального района | D48: 1,772,873.00 | E48: 1,383,817.00 | F48: 1,200,506.00 | G48: 67.72 | H48: -7.28
A49: 16. | B49: Охрана окружающей среды на территории Заволжского муниципального района | D49: 5,475,879.12 | E49: 0.00 | F49: 0.00 | G49: 0.00 | H49: -75.00
B50: ИТОГО | D50: =D7+D13+D14+D18+D21+D24+D27+D29+D32+D33+D37+D40+D44+D45+D48+D49 -> 708,170,155.60 | E50: =E7+E13+E14+E18+E21+E24+E27+E29+E32+E33+E37+E40+E44+E45+E48+E49 -> 421,986,088.37 | F50: =F7+F13+F14+F18+F21+F24+F27+F29+F32+F33+F37+F40+F44+F45+F48+F49 -> 365,229,852.46 | G50: =F50/D50*100 -> 51.57 | H50: -23.43
A51: Заместитель начальника финансового отдела | F51: Н.В.Селезнева
